bitfinex-derivatives/quotes_ETHF0:USTF0_20250114
["timestamp","ask_amount","ask_price","bid_price","bid_amount"]
[1736872803113,3.2078,3191.5,3190.9,0.31352]
[1736872803310,3.2078,3191.5,3190.8,40.8]
[1736872803504,3.2078,3191.5,3191.0,3.3255304]
[1736872803706,3.2078,3191.5,3191.4,0.31348]
[1736872804014,1.394,3191.8,3191.6,0.31345]
[1736872804015,1.70744,3191.8,3191.6,0.31345]
[1736872804211,1.70745,3191.8,3191.3,3.3255304]
[1736872804420,4.6018,3191.8,3191.3,3.6390104]
[1736872804612,4.6018,3191.8,3191.0,3.3255304]
[1736872804913,3.2078,3191.4,3190.8,40.8]
[1736872805116,0.31351,3191.2,3190.9,0.69995514]
[1736872805314,0.31351,3191.2,3190.9,0.31352]
[1736872805614,0.31351,3191.2,3191.0,0.31351]
[1736872805811,3.2078,3191.4,3190.8,40.8]
[1736872806013,0.31353,3190.9,3190.8,40.8]
[1736872807011,3.84676466,3190.9,3190.8,40.8]
[1736872807213,4.32966466,3190.9,3190.8,40.8]
[1736872807909,4.01613466,3190.9,3189.9,0.4585]
[1736872808111,0.31361,3190.0,3189.9,0.4585]
[1736872808310,3.2078,3190.3,3189.9,0.8458118]
[1736872808511,0.3136,3190.1,3189.9,0.77212]
[1736872808715,3.2078,3190.3,3189.9,0.77212]
[1736872808913,0.3136,3190.2,3190.1,0.3136]
[1736872809117,3.2078,3190.3,3189.9,0.4585]
[1736872809308,3.2078,3190.3,3190.0,0.38735522]
[1736872809517,3.2078,3190.3,3190.2,3.3255304]
[1736872809720,3.52139,3190.3,3190.2,0.38735407]
[1736872809920,3.2078,3190.3,3190.0,0.81261]
[1736872810220,0.31361,3190.1,3189.9,0.77212]
[1736872810524,0.31361,3190.1,3189.9,0.4585]
[1736872810716,0.31361,3190.1,3190.0,41.18739616]
[1736872811024,0.3136,3190.2,3190.0,41.50100616]
[1736872811216,3.2078,3190.7,3190.0,40.8]
[1736872811418,0.3136,3190.1,3190.0,40.8]
[1736872811719,0.3136,3190.1,3190.0,41.18741851]
[1736872811917,4.29029596,3190.6,3190.0,41.18741851]
[1736872812123,0.3136,3190.2,3190.1,0.38741327]
[1736872812417,3.50639596,3190.6,3190.1,0.38741327]
[1736872812620,3.2078,3190.7,3190.4,3.3255304]
[1736872812818,3.2078,3190.7,3190.6,0.31356]
[1736872813012,0.31349,3191.3,3191.1,0.3135]
[1736872813215,3.2078,3191.4,3190.7,3.7786304]
[1736872813418,0.31351,3191.1,3190.9,0.31352]
[1736872813619,0.31351,3191.1,3191.0,0.38752131]
[1736872814020,0.31351,3191.1,3191.0,41.18752131]
[1736872815224,0.31351,3191.1,3191.0,41.18789389]
[1736872815521,3.2078,3191.4,3191.0,41.18789389]
[1736872815719,0.31349,3191.3,3191.1,0.70140389]
[1736872815919,0.31349,3191.3,3191.2,0.38789389]
[1736872816124,3.2078,3191.4,3191.2,0.38789389]
[1736872816421,3.52128,3191.4,3191.3,0.38789389]
[1736872817325,0.31348,3191.4,3191.3,0.70137389]
[1736872817519,3.2078,3191.5,3191.3,0.70137389]
[1736872817729,3.52127,3191.5,3191.4,0.38789389]
[1736872819223,3.52127,3191.5,3191.4,0.38814921]
[1736872819729,3.2078,3191.5,3191.4,0.38818304]
[1736872819923,3.2078,3191.5,3191.4,0.70166304]
[1736872821121,3.2078,3192.0,3191.4,0.38818304]
[1736872821320,3.2078,3192.0,3191.5,4.18238041]
[1736872821515,3.2078,3192.5,3191.8,3.3255304]
[1736872821730,3.2078,3192.5,3191.9,0.38815001]
[1736872821928,0.31338,3192.4,3192.2,0.31339]
[1736872822123,0.3134,3192.3,3192.0,0.31341]
[1736872822424,0.3134,3192.2,3192.0,0.31341]
[1736872822932,0.3134,3192.2,3192.1,0.38803096]
[1736872823124,3.2078,3192.5,3191.7,3.2078]
[1736872823323,3.2078,3192.5,3192.1,0.3134]
[1736872823518,0.31338,3192.4,3192.1,0.3134]
[1736872823831,0.31339,3192.3,3192.1,0.3134]
[1736872824334,3.55247153,3192.2,3192.1,0.3134]
[1736872824629,0.3134,3192.2,3192.0,0.31341]
[1736872824825,0.31341,3192.1,3191.9,0.31342]
[1736872825024,0.31341,3192.1,3192.0,0.31342]
[1736872825223,3.53857396,3192.4,3191.7,3.2078]
[1736872825426,0.31341,3192.2,3192.0,0.31341]
[1736872826425,3.52117,3192.5,3192.3,0.31338]
[1736872826627,3.2078,3192.5,3191.8,3.3255304]
[1736872826931,0.31339,3192.3,3192.0,0.31341]
[1736872827131,0.31339,3192.3,3192.1,0.3877472]
[1736872827324,3.2078,3192.5,3191.7,3.2078]
[1736872827521,3.2078,3192.5,3191.8,0.38768905]
[1736872827722,0.31341,3192.1,3191.9,0.70111761]
[1736872827922,0.00309354,3192.2,3192.0,0.38769761]
[1736872828133,0.00309354,3192.2,3192.1,0.38763974]
[1736872828434,0.00309354,3192.2,3191.6,41.2778]
[1736872828629,0.31342,3192.1,3191.9,0.31343]
[1736872828823,0.00309354,3192.2,3192.0,0.3876549]
[1736872829023,0.00309354,3192.2,3191.6,41.2778]
[1736872829324,0.00309354,3192.2,3192.1,0.31341]
[1736872829630,0.00309354,3192.2,3192.1,0.70099546]
[1736872829829,0.31344,3191.8,3191.6,41.2778]
[1736872830023,3.99135,3192.0,3191.6,40.8]
[1736872830234,3.362717,3191.7,3190.7,1.26924]
[1736872830426,0.3135,3191.2,3190.9,0.31352]
[1736872830623,0.3135,3191.2,3190.8,0.38767679]
[1736872830624,0.31351,3191.1,3191.0,0.38767679]
[1736872830927,0.31353,3190.9,3190.8,0.31353]
[1736872831136,3.52133,3190.9,3190.8,0.38771983]
[1736872831332,0.31356,3190.6,3190.5,3.2078]
[1736872831533,0.31356,3190.6,3190.5,0.38777642]
[1736872831736,0.31358,3190.4,3190.1,0.4958]
[1736872831934,0.31359,3190.3,3190.2,0.38793246]
[1736872832227,0.31359,3190.3,3190.2,40.8]
[1736872832228,3.32280455,3190.3,3190.2,40.8]
[1736872832430,3.63639455,3190.3,3190.2,40.8]
[1736872832621,0.31359,3190.3,3190.2,40.8]
[1736872832825,3.63639455,3190.3,3190.2,40.8]
[1736872833528,0.31359,3190.3,3190.2,40.8]
[1736872833929,8.9477145,3190.3,3190.2,40.8]
[1736872834128,12.2732449,3190.3,3190.2,40.8]
[1736872835328,0.31365,3189.6,3189.5,0.31366]
[1736872835923,3.2078,3190.0,3189.9,0.31362]
[1736872836130,3.2078,3190.4,3189.9,6.5333304]
[1736872836330,0.31352,3191.0,3190.4,0.78395]
[1736872836532,0.31358,3190.4,3190.3,3.2078]
[1736872836832,0.3136,3190.2,3190.1,0.3136]
[1736872837033,3.2078,3190.7,3190.2,0.31359]
[1736872837229,3.6797,3190.7,3189.9,6.5333304]
[1736872837426,3.2078,3190.7,3190.6,0.31356]
[1736872837929,1.403,3191.3,3191.1,0.31351]
[1736872838124,1.403,3191.3,3190.9,0.31352]
[1736872838330,1.403,3191.3,3190.5,3.7947304]
[1736872838634,3.52128,3191.4,3191.2,0.3135]
[1736872838837,3.2078,3191.4,3190.9,0.31353]
[1736872839022,3.52128,3191.4,3191.2,0.31349]
[1736872839427,3.52128,3191.4,3191.2,0.3135]
[1736872840031,3.2078,3191.4,3190.8,3.3255304]
[1736872840228,0.31351,3191.1,3190.9,0.31352]
[1736872840431,0.3135,3191.2,3191.0,0.31351]
[1736872840631,0.31351,3191.1,3191.0,40.8]
[1736872840835,3.2078,3191.4,3191.0,40.8]
[1736872841036,0.3135,3191.2,3191.0,41.11351]
[1736872841232,0.31351,3191.1,3191.0,40.8]
[1736872841538,5.69158668,3191.1,3190.2,3.2078]
[1736872841736,0.31358,3190.4,3190.2,3.5214]
[1736872842137,0.31358,3190.4,3190.3,40.8]
[1736872844332,8.2940832,3190.4,3190.3,40.8]
[1736872848940,6.8910832,3190.4,3190.3,40.8]
[1736872849136,3.52138,3190.4,3190.3,40.8]
[1736872849345,7.05978275,3190.4,3190.3,40.8]
[1736872850141,3.2078,3190.4,3190.3,41.11359]
[1736872850340,3.52138,3190.4,3190.3,40.8]
[1736872850552,7.1520841,3190.4,3190.3,40.8]
[1736872851248,11.8385041,3190.4,3188.9,3.2078]
[1736872851443,3.5215,3189.1,3188.5,3.3255304]
[1736872851643,0.31373,3188.9,3188.8,0.31373]
[1736872852148,0.31373,3188.9,3188.8,41.11373]
[1736872852747,0.31373,3188.9,3188.8,40.8]
[1736872853040,3.2078,3189.1,3188.8,41.11373]
[1736872853239,3.2078,3189.1,3188.8,40.8]
[1736872853443,0.31365,3189.7,3189.5,0.31366]
[1736872853648,0.31364,3189.8,3189.3,0.31368]
[1736872853946,0.31367,3189.4,3189.3,0.31368]
[1736872854141,3.33129637,3189.8,3189.3,0.31368]
[1736872854357,0.31367,3189.5,3189.4,0.31367]
[1736872854540,0.31364,3189.7,3189.3,0.31368]
[1736872854743,0.31367,3189.5,3189.3,0.31368]
[1736872855048,0.31367,3189.4,3189.3,0.31368]
[1736872855240,0.31367,3189.5,3189.3,0.31368]
[1736872855738,0.31368,3189.4,3189.3,0.31368]
[1736872857246,0.31368,3189.4,3189.0,0.4653]
[1736872857247,3.33129637,3189.8,3189.0,0.4653]
[1736872857544,3.2078,3189.9,3189.8,0.31363]
[1736872857945,0.31358,3190.4,3190.2,0.31359]
[1736872858147,3.2078,3190.5,3190.0,3.3255304]
[1736872858443,3.6773,3190.9,3190.3,3.3255304]
[1736872858746,0.31355,3190.7,3190.6,0.31355]
[1736872858946,3.6773,3190.9,3190.3,3.3255304]
[1736872859144,0.31355,3190.7,3190.6,0.31355]
[1736872859348,0.31355,3190.7,3190.6,40.8]
[1736872859542,3.2078,3190.9,3190.6,40.8]
[1736872859738,3.2078,3190.9,3190.8,0.31354]
[1736872860049,2.3354,3191.5,3191.1,0.3135]
[1736872860050,3.2078,3191.3,3191.1,0.3135]
[1736872860255,0.31351,3191.1,3191.0,0.31351]
[1736872860446,0.3135,3191.2,3191.1,0.3135]
[1736872860642,3.49193727,3191.1,3190.6,40.8]
[1736872860848,0.31361,3190.1,3190.0,0.31361]
[1736872861050,0.31361,3190.1,3190.0,0.38572581]
[1736872861245,3.2078,3190.3,3189.8,3.2078]
[1736872861441,3.2078,3190.3,3189.7,0.9326]
[1736872861650,0.31361,3190.1,3190.0,0.31361]
[1736872861851,0.31361,3190.1,3190.0,41.11361]
[1736872862149,0.3136,3190.2,3190.0,41.49942953]
[1736872862350,0.3136,3190.2,3190.0,41.11361]
[1736872862548,3.2078,3190.3,3190.0,41.11361]
[1736872862747,3.2078,3190.7,3190.1,0.38585494]
[1736872863051,3.2078,3191.1,3191.0,0.31352]
[1736872863245,0.4701,3191.5,3191.0,0.38575425]
[1736872863445,0.4701,3191.5,3190.9,3.3255304]
[1736872863446,0.31349,3191.3,3190.9,3.3255304]
[1736872863647,0.31349,3191.3,3191.2,0.3135]
[1736872863847,0.4701,3191.5,3191.1,40.8]
[1736872864043,0.3135,3191.2,3191.1,40.8]
[1736872864251,3.60426719,3191.4,3191.1,40.8]
[1736872864449,3.60426719,3191.4,3191.1,41.1135]
[1736872864649,0.3135,3191.2,3191.1,41.1135]
[1736872864854,0.3135,3191.2,3191.1,40.8]
[1736872865054,0.3135,3191.2,3191.1,41.11351]
[1736872865351,9.8240998,3191.2,3189.5,3.2078]
[1736872865557,3.2078,3190.5,3189.6,0.38562637]
[1736872865751,3.2078,3190.5,3189.9,3.2078]
[1736872865953,3.4140998,3190.4,3190.0,0.38564512]
[1736872866152,3.4140998,3190.4,3189.4,6.5333304]
[1736872866153,3.2078,3190.1,3189.4,6.5333304]
[1736872866348,3.52145,3189.6,3189.5,41.18562061]
[1736872866552,6.5333304,3189.6,3188.2,3.2078]
[1736872866760,3.2078,3188.8,3188.3,0.38572262]
[1736872867053,3.2078,3188.8,3188.2,3.2078]
[1736872867254,0.31377,3188.4,3188.3,0.3857222]
[1736872867461,3.53867154,3188.7,3188.2,3.2078]
[1736872867764,3.53867154,3188.7,3188.2,6.5333304]
[1736872867956,3.52154,3188.8,3188.5,0.31375]
[1736872868255,3.2078,3188.8,3188.2,3.2078]
[1736872868550,3.29506331,3188.7,3188.2,3.2078]
[1736872868745,3.60881331,3188.7,3188.3,0.38280466]
[1736872868948,0.31376,3188.6,3188.4,0.31377]
[1736872869148,3.29506331,3188.7,3188.2,3.2078]
[1736872869348,3.29506331,3188.7,3188.5,0.31375]
[1736872869349,3.60881331,3188.7,3188.5,0.31375]
[1736872869556,3.2078,3188.8,3188.1,0.78449]
[1736872869751,3.52154,3188.8,3188.6,0.31375]
[1736872870153,3.2078,3188.8,3188.7,0.31374]
[1736872870358,3.52154,3188.8,3188.5,0.31375]
[1736872870656,3.52154,3188.8,3188.7,40.8]
[1736872870657,3.52153,3188.8,3188.7,40.8]
[1736872871051,3.2078,3188.8,3188.7,41.11374]
[1736872871452,3.52153,3188.8,3188.7,40.8]
[1736872871761,3.2078,3188.8,3188.7,40.8]
[1736872871953,3.52153,3188.8,3188.7,40.8]
[1736872872354,7.09400596,3188.8,3188.7,40.8]
[1736872873660,6.78027596,3188.8,3187.4,3.2078]
[1736872873866,3.2078,3188.3,3188.1,0.3138]
[1736872874163,3.2078,3188.3,3187.4,3.2078]
[1736872874362,0.31379,3188.2,3188.1,0.3138]
[1736872874752,0.31379,3188.2,3188.1,40.8]
[1736872874962,3.87203799,3188.2,3188.1,40.8]
[1736872875854,3.55824799,3188.2,3187.4,3.2078]
[1736872876055,0.31386,3187.6,3187.4,3.52167]
[1736872876258,3.2078,3187.8,3187.7,0.31384]
[1736872876459,0.31383,3187.9,3187.7,41.11384]
[1736872877154,3.5216,3188.2,3188.0,0.31381]
[1736872877359,0.31382,3188.0,3187.8,0.31383]
[1736872877558,0.31382,3188.0,3187.4,3.2078]
[1736872877559,0.31381,3188.1,3187.9,0.31381]
[1736872877759,3.2078,3188.2,3187.4,3.2078]
[1736872877967,3.2078,3188.2,3187.5,0.8698056]
[1736872878269,3.2078,3188.2,3187.6,0.3818056]
[1736872878457,3.2078,3188.2,3187.7,0.31384]
[1736872878861,0.31384,3187.7,3187.4,3.52166]
[1736872879055,3.2078,3187.8,3187.4,3.2078]
[1736872879263,3.52164,3187.8,3187.6,0.31385]
[1736872879457,3.52164,3187.8,3187.5,0.31385]
[1736872879672,3.52164,3187.8,3187.4,3.2078]
[1736872879868,3.2078,3187.8,3187.4,3.2078]
[1736872880071,3.52164,3187.8,3187.6,0.31385]
[1736872880368,3.2078,3187.8,3187.7,0.31384]
[1736872880571,3.2078,3187.8,3187.7,40.8]
[1736872880770,3.52163,3187.8,3187.7,40.8]
[1736872880962,7.01690663,3187.8,3187.7,40.8]
[1736872881164,7.01690663,3187.8,3186.4,1.24662]
[1736872881165,0.31391,3187.1,3186.5,0.9299]
[1736872881365,3.2078,3187.0,3186.5,0.9299]
[1736872881569,0.31393,3186.9,3186.5,0.9299]
[1736872881762,6.68228353,3187.0,3186.8,0.31393]
[1736872881763,3.2078,3187.0,3186.8,0.31393]
[1736872881967,3.2078,3187.0,3186.5,0.9299]
[1736872882162,0.31397,3186.5,3186.3,0.31397]
[1736872882366,0.31396,3186.5,3186.4,40.8]
[1736872882668,3.55057866,3186.5,3186.4,40.8]
[1736872883174,3.52176,3186.5,3186.4,40.8]
[1736872884171,3.2078,3186.5,3186.4,41.11397]
[1736872884474,0.31395,3186.6,3186.5,0.31396]
[1736872884679,1.412,3186.7,3186.6,0.31395]
[1736872884970,1.412,3186.7,3186.4,40.8]
[1736872885172,3.6662,3186.9,3186.4,40.8]
[1736872885467,0.4584,3186.9,3186.8,0.31393]
[1736872885661,0.4584,3186.9,3186.4,40.8]
[1736872885662,1.412,3187.1,3186.7,3.2078]
[1736872885864,0.31392,3186.9,3186.8,0.31393]
[1736872886167,0.31391,3187.0,3186.9,0.31391]
[1736872886478,1.412,3187.1,3187.0,0.31391]
[1736872886766,1.7259,3187.1,3187.0,0.31391]
[1736872886968,3.2078,3187.3,3186.7,3.2078]
[1736872887171,3.52169,3187.3,3187.2,0.31389]
[1736872887772,3.2078,3187.3,3187.2,41.11389]
[1736872888176,1.412,3187.7,3187.2,40.8]
[1736872888365,1.412,3187.7,3187.6,0.31385]
[1736872888573,3.2078,3187.8,3187.7,0.31384]
[1736872889974,0.9415,3188.5,3187.7,0.78461]
[1736872890172,0.3138,3188.2,3188.1,0.3138]
[1736872890372,3.99224,3188.4,3187.7,0.4781]
[1736872890674,0.31382,3187.9,3187.8,40.8]
[1736872890876,0.31382,3187.9,3187.8,41.11383]
[1736872891772,0.78446,3188.3,3187.8,41.11383]
[1736872891773,0.31382,3188.0,3187.9,0.31381]
[1736872892568,0.31382,3187.9,3187.8,41.11383]
[1736872892764,0.31382,3187.9,3187.8,40.8]
[1736872893370,1.09842,3187.8,3187.1,0.3139]
[1736872893572,0.3139,3187.2,3187.1,0.3139]
[1736872893773,3.52167,3187.4,3187.3,0.31388]
[1736872893969,3.30656795,3187.7,3187.1,40.8]
[1736872894176,0.31389,3187.2,3187.1,40.8]
[1736872895471,3.2078,3187.3,3187.1,41.1139]
[1736872895677,3.2078,3187.3,3187.2,0.69637608]
[1736872896180,0.31386,3187.5,3187.3,0.31387]
[1736872896478,0.31386,3187.5,3187.4,0.31387]
[1736872896783,0.4938,3187.8,3187.4,0.31386]
[1736872896970,0.31386,3187.6,3187.5,0.31386]
[1736872897175,0.4938,3187.8,3187.1,40.8]
[1736872897374,0.31384,3187.8,3187.2,0.38283214]
[1736872897578,0.31384,3187.7,3187.6,0.31385]
[1736872897786,3.2078,3187.9,3187.6,0.31385]
[1736872898079,5.1211,3188.3,3187.3,3.2078]
[1736872898276,5.1211,3188.3,3187.4,1.65715585]
[1736872898479,3.49349738,3188.1,3187.3,3.2078]
[1736872898772,4.27798738,3188.2,3187.6,0.31385]
[1736872899078,1.09828,3188.2,3187.6,0.31384]
[1736872899378,0.31384,3187.7,3187.6,0.31384]
[1736872899572,3.49349738,3188.1,3187.3,3.2078]
[1736872899780,0.31383,3187.9,3187.7,0.31383]
[1736872900076,5.1211,3188.3,3188.0,0.31381]
[1736872900282,0.4933,3188.3,3187.7,3.2078]
[1736872900577,0.80709,3188.3,3188.2,0.31379]
[1736872900777,0.4933,3188.3,3188.2,40.8]
[1736872901080,0.80708,3188.3,3188.2,40.8]
[1736872901374,0.80708,3188.3,3188.2,41.11379]
[1736872901579,0.80708,3188.3,3188.2,40.8]
[1736872901780,0.80708,3188.3,3187.7,3.2078]
[1736872901781,0.31383,3187.8,3187.7,3.2078]
[1736872902079,0.31383,3187.8,3187.7,3.52164]
[1736872902270,0.31383,3187.8,3187.7,44.32164]
[1736872902476,0.31383,3187.8,3187.7,44.0078]
[1736872903176,0.31383,3187.8,3187.7,44.39126286]
[1736872903579,0.31383,3187.9,3187.8,0.31383]
[1736872903774,0.31383,3187.8,3187.7,44.32164]
[1736872903974,3.61612372,3188.1,3187.7,44.39130519]
[1736872904175,3.61612372,3188.2,3187.8,0.38350519]
[1736872904377,0.31381,3188.2,3188.1,0.3138]
[1736872904672,3.6190007,3188.2,3188.0,0.31381]
[1736872904876,3.9328007,3188.2,3188.1,0.69729898]
[1736872905076,0.4933,3188.3,3188.2,0.31379]
[1736872905273,3.6963,3188.8,3188.2,0.38349898]
[1736872905575,0.31377,3188.5,3188.4,0.31376]
[1736872905779,0.31374,3188.7,3188.6,0.31374]
[1736872905980,3.6963,3188.8,3188.2,0.78448]
[1736872906169,0.31372,3189.0,3188.9,0.31372]
[1736872906369,3.2078,3189.3,3189.2,0.31369]
[1736872906572,3.2078,3189.3,3189.2,0.69684489]
[1736872906778,3.2078,3189.3,3189.2,41.49684489]
[1736872907382,3.2078,3189.3,3189.2,41.18314382]
[1736872907581,3.52148,3189.3,3189.2,41.11369]
[1736872907881,3.52148,3189.3,3189.2,40.8]
[1736872908577,3.52148,3189.3,3189.2,41.11369]
[1736872908772,3.52148,3189.3,3189.2,40.8]
[1736872910481,3.52148,3189.3,3188.7,3.2078]
[1736872910482,0.31371,3189.1,3189.0,0.31371]
[1736872910683,0.31371,3189.1,3188.7,3.2078]
[1736872910684,3.2078,3189.3,3188.8,0.78434]
[1736872910879,3.2078,3189.3,3189.2,0.31369]
[1736872910880,3.52148,3189.3,3189.2,0.31369]
[1736872911081,3.2078,3189.3,3189.2,0.31369]
[1736872911479,3.2078,3189.3,3189.2,41.11369]
[1736872911882,3.52148,3189.3,3189.2,40.8]
[1736872913284,3.52148,3189.3,3189.2,41.11369]
[1736872913484,3.52148,3189.3,3189.2,40.8]
[1736872913678,0.31369,3189.2,3188.9,0.31372]
[1736872913887,0.3137,3189.2,3189.1,0.3137]
[1736872914184,3.2078,3189.3,3189.2,0.31369]
[1736872914388,0.31366,3189.6,3189.1,40.8]
[1736872914592,0.31366,3189.6,3189.5,0.31366]
[1736872914887,3.52144,3189.8,3189.7,0.31364]
[1736872915185,0.31366,3189.6,3189.5,0.31366]
[1736872915487,3.2078,3189.8,3189.2,0.484]
[1736872915683,0.31366,3189.6,3189.5,0.31366]
[1736872916185,3.2078,3189.8,3189.2,0.484]
[1736872916587,0.31368,3189.4,3189.2,0.484]
[1736872916793,3.41617133,3189.7,3189.2,0.79769]
[1736872916794,0.31368,3189.3,3189.2,0.79769]
[1736872916989,3.41617133,3189.7,3189.2,0.484]
[1736872917196,0.31368,3189.3,3189.2,0.79769]
[1736872917589,0.31368,3189.3,3189.2,0.484]
[1736872917891,0.31368,3189.3,3189.2,0.79769]
[1736872918590,0.31367,3189.5,3189.3,0.31368]
[1736872918790,0.31367,3189.4,3189.3,0.31368]
[1736872919091,0.31367,3189.4,3189.2,0.484]
[1736872919092,0.31367,3189.5,3189.4,0.31367]
[1736872919290,0.31368,3189.4,3189.3,0.31368]
[1736872919688,3.2078,3189.8,3189.2,0.484]
[1736872919891,3.2078,3189.8,3189.7,0.31364]
[1736872920600,3.2078,3189.8,3189.7,41.11364]
[1736872920988,0.31362,3190.0,3189.9,0.31363]
[1736872922399,0.4946,3190.1,3189.7,40.8]
[1736872922597,0.31368,3189.3,3189.1,3.2078]
[1736872922799,3.9919,3189.8,3189.1,3.2078]
[1736872923002,0.31368,3189.3,3189.2,41.11368]
[1736872923197,0.31368,3189.3,3189.2,40.8]
[1736872923198,3.52148,3189.3,3189.2,40.8]
[1736872923400,6.71320596,3189.3,3188.5,3.2078]
[1736872923707,0.31371,3189.1,3189.0,0.31371]
[1736872923899,0.31371,3189.1,3189.0,41.11371]
[1736872924202,0.3137,3189.1,3189.0,41.11371]
[1736872924391,3.2078,3189.3,3189.2,0.31369]
[1736872924597,3.2078,3190.0,3189.2,3.2078]
[1736872924805,3.2078,3190.0,3189.9,0.31363]
[1736872925100,3.2078,3190.0,3189.6,0.31365]
[1736872925101,0.31365,3189.7,3189.6,0.31365]
[1736872925302,0.31364,3189.8,3189.7,0.31364]
[1736872925495,0.31364,3189.8,3189.7,41.11364]
[1736872925700,0.31364,3189.8,3189.7,40.8]
[1736872927501,3.91419744,3189.8,3189.7,40.8]
[1736872927807,3.60055744,3189.8,3188.8,6.53302208]
[1736872928107,0.31369,3189.4,3189.3,0.31368]
[1736872928297,0.31369,3189.4,3189.3,41.11368]
[1736872928695,3.52147,3189.5,3189.4,0.31367]
[1736872928904,3.2078,3189.5,3189.3,40.8]
[1736872929107,0.31367,3189.4,3189.3,41.11368]
[1736872929500,3.52147,3189.5,3189.4,0.31367]
[1736872929702,0.4593,3189.9,3189.3,44.0078]
[1736872929703,0.31365,3189.7,3189.3,44.0078]
[1736872929902,0.31365,3189.7,3189.6,0.31365]
[1736872930098,0.31364,3189.8,3189.7,0.31363]
[1736872930302,0.31363,3189.9,3189.8,0.31363]
[1736872930603,0.31366,3189.6,3189.5,0.31365]
[1736872930800,0.31367,3189.4,3189.3,41.11367]
[1736872930998,0.31367,3189.4,3189.3,40.8]
[1736872931202,0.31377,3188.4,3188.3,3.2078]
[1736872931401,0.31377,3188.4,3187.9,0.31382]
[1736872931402,0.31381,3188.0,3187.9,0.31382]
[1736872931703,3.2078,3188.4,3187.7,0.4582]
[1736872932002,3.2078,3188.4,3187.8,3.32522208]
[1736872932207,4.6218,3188.8,3188.1,3.32522208]
[1736872932508,0.31382,3188.0,3187.9,0.31382]
[1736872932711,3.2078,3188.4,3187.7,0.4582]
[1736872932913,0.31384,3187.8,3187.6,0.31385]
[1736872933205,5.25811307,3188.3,3187.7,40.8]
[1736872933810,0.31383,3187.8,3187.7,41.11384]
[1736872933997,4.47365307,3188.3,3187.7,40.8]
[1736872934198,0.31382,3188.0,3187.9,0.31382]
[1736872934406,0.3138,3188.2,3188.1,0.3138]
[1736872934602,0.9735,3188.3,3187.7,40.8]
[1736872934798,1.28728,3188.3,3188.2,0.31379]
[1736872934998,0.3138,3188.1,3188.0,0.31381]
[1736872935408,0.31382,3187.9,3187.8,3.2078]
[1736872935614,0.31383,3187.8,3187.7,40.8]
[1736872936007,3.18817696,3187.8,3187.7,40.8]
[1736872936210,3.2078,3188.0,3187.7,40.8]
[1736872936408,3.2078,3188.0,3187.8,0.31383]
[1736872936409,0.31382,3187.9,3187.8,0.31383]
[1736872936713,0.31383,3187.8,3187.7,40.8]
[1736872937109,3.2078,3188.0,3187.7,40.8]
[1736872937412,0.31387,3187.5,3187.3,0.31388]
[1736872937611,3.34188774,3187.9,3187.0,3.32522208]
[1736872937813,0.31386,3187.5,3187.4,41.11387]
[1736872938413,0.31386,3187.5,3187.4,40.8]
[1736872938615,3.2078,3188.0,3187.4,40.8]
[1736872938818,0.31386,3187.5,3187.4,40.8]
[1736872939906,0.78766,3187.5,3187.4,40.8]
[1736872940619,3.7041,3187.6,3187.4,40.8]
[1736872940807,3.7041,3187.6,3187.5,0.31386]
[1736872940808,3.2078,3187.6,3187.5,0.31386]
[1736872941211,3.2078,3188.0,3187.3,3.32522208]
[1736872941410,0.3138,3188.2,3188.1,0.3138]
[1736872941615,4.1667,3188.8,3188.1,3.2078]
[1736872941811,0.31378,3188.4,3188.2,0.31379]
[1736872942213,4.95106,3188.8,3188.0,0.9599]
[1736872942412,0.3138,3188.1,3188.0,0.79651]
[1736872942609,0.78438,3188.7,3188.0,3.6905]
[1736872942610,3.30928454,3188.7,3188.0,3.6905]
[1736872942918,4.6228,3189.6,3188.6,3.32522208]
[1736872943221,0.31372,3189.0,3188.9,0.31372]
[1736872943415,3.79518454,3189.5,3188.6,3.32522208]
[1736872943716,0.3137,3189.1,3189.0,40.8]
[1736872945921,0.7843,3189.0,3188.2,0.4835]
[1736872946221,3.2078,3188.8,3188.4,0.31377]
[1736872946424,3.2078,3188.8,3188.5,40.8]
[1736872946609,0.31375,3188.7,3188.5,40.8]
[1736872946816,3.2078,3188.8,3188.7,0.31374]
[1736872947123,0.31375,3188.6,3188.5,41.11376]
[1736872947321,0.31375,3188.6,3188.5,40.8]
[1736872947523,0.31379,3188.2,3188.1,3.5216]
[1736872948021,3.3560626,3188.6,3188.1,44.0078]
[1736872948222,3.2078,3188.8,3188.1,44.0078]
[1736872948420,3.32522208,3188.3,3187.3,3.2078]
[1736872948623,3.32522208,3188.3,3186.9,8.25932208]
[1736872948624,3.2078,3188.0,3186.9,8.25932208]
[1736872948925,3.2078,3188.0,3187.0,41.1825613]
[1736872948926,0.31386,3187.6,3187.0,41.1825613]
[1736872949116,0.31386,3187.6,3187.2,0.31389]
[1736872949420,0.31383,3187.8,3187.7,0.31384]
[1736872949823,3.2078,3188.0,3187.3,3.2078]
[1736872950015,0.31385,3187.7,3187.5,0.31386]
[1736872950411,3.2078,3188.0,3187.5,0.31386]
[1736872950818,0.31384,3187.8,3187.6,0.31384]
[1736872951123,3.2078,3188.0,3187.3,3.2078]
[1736872951427,0.31387,3187.4,3187.3,3.2078]
[1736872951720,0.31389,3187.3,3187.2,0.31389]
[1736872952025,0.3139,3187.2,3187.1,0.3139]
[1736872952218,3.2078,3187.6,3187.0,40.8]
[1736872952423,0.3139,3187.1,3187.0,40.8]